fUSD/lending_fUSD_20241207
["ID","MTS","AMOUNT","RATE_DAILY","PERIOD"]
[344546596,1733541063248,-500.0,0.00012595,2]
[344546597,1733541063260,-500.0,0.00012595,2]
[344546598,1733541063271,-500.0,0.00012595,2]
[344546599,1733541063284,-500.0,0.00012595,2]
[344546600,1733541063295,-500.0,0.00012595,2]
[344546601,1733541063307,-643.58086363,0.00012595,2]
[344546602,1733541063318,-500.0,0.00012595,2]
[344546603,1733541063330,-500.0,0.00012595,2]
[344546604,1733541063341,-9341.32078279,0.00012676,2]
[344546605,1733541063353,-3073.21,0.0001268,2]
[344546606,1733541063364,-167.18,0.00012708,2]
[344546607,1733541063375,-200.0,0.00012798,3]
[344546608,1733541063386,-200.0,0.00012798,3]
[344546609,1733541063397,-200.0,0.00012798,2]
[344546610,1733541063409,-2200.0,0.000128,4]
[344546611,1733541063421,-500.0,0.00012867,2]
[344546612,1733541063432,-500.0,0.00012867,2]
[344546613,1733541063444,-562.43,0.00012867,2]
[344546614,1733541063456,-500.0,0.00012867,2]
[344546615,1733541063469,-500.0,0.00012867,2]
[344546616,1733541063480,-500.0,0.00012867,2]
[344546617,1733541063491,-500.0,0.00012867,2]
[344546618,1733541063502,-500.0,0.00012867,2]
[344546619,1733541063513,-500.0,0.00012867,2]
[344546620,1733541063525,-500.0,0.00012867,2]
[344546621,1733541063537,-500.0,0.00012867,2]
[344546622,1733541063549,-174.49437941,0.00012867,2]
[344546623,1733541063560,-500.0,0.00012867,2]
[344546624,1733541063572,-500.0,0.00012867,2]
[344546625,1733541063586,-500.0,0.00012867,2]
[344546626,1733541063597,-156.21474,0.00012867,2]
[344546627,1733541063608,-500.0,0.00012867,2]
[344546628,1733541063619,-500.0,0.00012867,2]
[344546629,1733541063631,-500.0,0.00012867,2]
[344546630,1733541063643,-500.0,0.00012867,2]
[344546631,1733541063654,-500.0,0.00012867,2]
[344546632,1733541063665,-500.0,0.00012867,2]
[344546633,1733541063677,-569.03,0.00012867,2]
[344546634,1733541063688,-500.0,0.00012867,2]
[344546635,1733541063700,-500.0,0.00012867,2]
[344546636,1733541063711,-500.0,0.00012867,2]
[344546637,1733541063722,-712.37,0.00012867,2]
[344546638,1733541063734,-500.0,0.00012867,2]
[344546639,1733541063745,-500.0,0.00012867,2]
[344546640,1733541063757,-500.0,0.00012867,2]
[344546641,1733541063768,-755.27,0.00012867,2]
[344546642,1733541063782,-500.0,0.00012867,2]
[344546643,1733541063794,-500.0,0.00012867,2]
[344546644,1733541063806,-500.0,0.00012867,2]
[344546645,1733541063817,-1134.32,0.00012867,2]
[344546646,1733541063829,-642.57722916,0.00012867,2]
[344546647,1733541063841,-500.0,0.00012867,2]
[344546648,1733541063853,-500.0,0.00012867,2]
[344546649,1733541063864,-500.0,0.00012867,2]
[344546650,1733541063876,-500.0,0.00012867,2]
[344546651,1733541063888,-729.35,0.00012867,2]
[344546652,1733541063899,-500.0,0.00012867,2]
[344546653,1733541063911,-500.0,0.00012867,2]
[344546654,1733541063923,-655.62,0.00012867,2]
[344546655,1733541063934,-500.0,0.00012867,2]
[344546656,1733541063945,-500.0,0.00012867,2]
[344546657,1733541063957,-500.0,0.00012867,2]
[344546658,1733541063967,-500.0,0.00012867,2]
[344546659,1733541063978,-500.0,0.00012867,2]
[344546660,1733541063990,-500.0,0.00012867,2]
[344546661,1733541064002,-559.97,0.00012867,2]
[344546662,1733541064013,-500.0,0.00012867,2]
[344546663,1733541064025,-500.0,0.00012867,2]
[344546664,1733541064039,-629.17,0.00012867,2]
[344546665,1733541064050,-500.0,0.00012867,2]
[344546666,1733541064061,-522.4,0.00012867,2]
[344546667,1733541064073,-500.0,0.00012867,2]
[344546668,1733541064084,-558.13,0.00012867,2]
[344546669,1733541064095,-500.0,0.00012867,2]
[344546670,1733541064106,-505.64034262,0.00012867,2]
[344546671,1733541064118,-596.81,0.00012867,2]
[344546672,1733541064129,-1715.02,0.00012867,2]
[344546673,1733541064140,-500.0,0.00012867,2]
[344546674,1733541064151,-743.73,0.00012867,2]
[344546675,1733541064163,-513.36350582,0.00012867,2]
[344546676,1733541064174,-607.63,0.00012867,2]
[344546677,1733541064185,-3248.7,0.00012867,2]
[344546678,1733541064197,-857.46,0.00012867,2]
[344546679,1733541064208,-500.0,0.00012867,2]
[344546680,1733541064219,-500.0,0.00012867,2]
[344546681,1733541064230,-3403.71,0.00012867,2]
[344546682,1733541064241,-546.54,0.00012867,2]
[344546683,1733541064252,-500.0,0.00012867,2]
[344546684,1733541064263,-500.0,0.00012867,2]
[344546685,1733541064274,-545.2,0.00012867,2]
[344546686,1733541064286,-506.19,0.00012867,2]
[344546687,1733541064296,-922.6,0.00012867,2]
[344546688,1733541064307,-500.0,0.00012867,2]
[344546689,1733541064318,-500.0,0.00012867,2]
[344546690,1733541064329,-1285.83,0.00012867,2]
[344546691,1733541064340,-553.43,0.00012867,2]
[344546692,1733541064351,-500.0,0.00012867,2]
[344546693,1733541064361,-1097.94,0.00012867,2]
[344546694,1733541064372,-753.13,0.00012867,2]
[344546695,1733541064382,-610.6,0.00012867,2]
[344546696,1733541064393,-893.85,0.00012867,2]
[344546697,1733541064405,-500.0,0.00012867,2]
[344546698,1733541064415,-500.0,0.00012867,2]
[344546699,1733541064426,-2397.76,0.00012867,2]
[344546700,1733541064437,-500.0,0.00012867,2]
[344546701,1733541064447,-500.0,0.00012867,2]
[344546702,1733541064459,-500.0,0.00012867,2]
[344546703,1733541064471,-500.0,0.00012867,2]
[344546704,1733541064483,-500.0,0.00012867,2]
[344546705,1733541064494,-500.0,0.00012867,2]
[344546706,1733541064505,-500.0,0.00012867,2]
[344546707,1733541064516,-1962.86,0.00012867,2]
[344546708,1733541064527,-500.0,0.00012867,2]
[344546709,1733541064538,-3708.05,0.00012867,2]
[344546710,1733541064549,-500.0,0.00012867,2]
[344546711,1733541064560,-500.0,0.00012867,2]
[344546712,1733541064571,-500.0,0.00012867,2]
[344546713,1733541064584,-500.0,0.00012867,2]
[344546714,1733541064596,-1882.97,0.00012867,2]
[344546715,1733541064607,-500.0,0.00012867,2]
[344546716,1733541064617,-500.0,0.00012867,2]
[344546717,1733541064630,-555.52,0.00012867,2]
[344546718,1733541064640,-500.0,0.00012867,2]
[344546719,1733541064651,-500.0,0.00012867,2]
[344546720,1733541064663,-500.0,0.00012867,2]
[344546721,1733541064673,-500.0,0.00012867,2]
[344546722,1733541064685,-841.17,0.00012867,2]
[344546723,1733541064695,-584.44,0.00012867,2]
[344546724,1733541064707,-656.6,0.00012867,2]
[344546725,1733541064718,-500.0,0.00012867,2]
[344546726,1733541064730,-868.73,0.00012867,2]
[344546727,1733541064742,-500.0,0.00012867,2]
[344546728,1733541064752,-730.65,0.00012867,2]
[344546729,1733541064763,-691.9,0.00012867,2]
[344546730,1733541064775,-500.0,0.00012867,2]
[344546731,1733541064788,-500.0,0.00012867,2]
[344546732,1733541064802,-500.0,0.00012867,2]
[344546733,1733541064814,-500.0,0.00012867,2]
[344546734,1733541064826,-3564.03,0.00012867,2]
[344546735,1733541064836,-1736.61,0.00012867,2]
[344546736,1733541064845,-2880.03,0.00012867,2]
[344546737,1733541064855,-500.0,0.00012867,2]
[344546738,1733541064864,-574.1,0.00012867,2]
[344546739,1733541064873,-605.61,0.00012867,2]
[344546740,1733541064884,-500.0,0.00012867,2]
[344546741,1733541064893,-1145.2,0.00012867,2]
[344546742,1733541064902,-500.0,0.00012867,2]
[344546743,1733541064911,-500.0,0.00012867,2]
[344546744,1733541064921,-500.0,0.00012867,2]
[344546745,1733541064931,-500.0,0.00012867,2]
[344546746,1733541064941,-500.0,0.00012867,2]
[344546747,1733541064951,-500.0,0.00012867,2]
[344546748,1733541064961,-500.0,0.00012867,2]
[344546749,1733541064970,-500.0,0.00012867,2]
[344546750,1733541064980,-500.0,0.00012867,2]
[344546751,1733541064990,-500.0,0.00012867,2]
[344546752,1733541065000,-977.63,0.00012867,2]
[344546753,1733541065009,-500.0,0.00012867,2]
[344546754,1733541065019,-500.0,0.00012867,2]
[344546755,1733541065031,-857.76,0.00012867,2]
[344546756,1733541065041,-866.03,0.00012867,2]
[344546757,1733541065051,-500.0,0.00012867,2]
[344546758,1733541065061,-500.0,0.00012867,2]
[344546759,1733541065071,-4199.14,0.00012867,2]
[344546760,1733541065081,-843.87,0.00012867,2]
[344546761,1733541065091,-2318.54,0.00012867,2]
[344546762,1733541065100,-500.0,0.00012867,2]
[344546763,1733541065553,-500.0,0.00012867,2]
[344546764,1733541065572,-500.0,0.00012867,2]
[344546765,1733541065597,-500.0,0.00012867,2]
[344546766,1733541065618,-500.0,0.00012868,2]
[344546767,1733541065629,-513.08,0.00012868,2]
[344546768,1733541065639,-500.0,0.00012868,2]
[344546769,1733541065648,-500.0,0.00012868,2]
[344546770,1733541065658,-500.0,0.00012868,2]
[344546771,1733541065667,-500.0,0.00012868,2]
[344546772,1733541065678,-500.0,0.00012868,2]
[344546773,1733541065687,-500.0,0.00012868,2]
[344546774,1733541065697,-500.0,0.00012868,2]
[344546775,1733541065706,-500.0,0.00012868,2]
[344546776,1733541065716,-500.0,0.00012868,2]
[344546777,1733541065725,-500.0,0.00012868,2]
[344546778,1733541065735,-500.0,0.00012868,2]
[344546779,1733541065744,-500.0,0.00012868,2]
[344546780,1733541065754,-500.0,0.00012868,2]
[344546781,1733541065764,-500.0,0.00012868,2]
[344546782,1733541065773,-500.0,0.00012868,2]
[344546783,1733541065784,-500.0,0.00012868,2]
[344546784,1733541065794,-500.0,0.00012868,2]
[344546785,1733541065804,-500.0,0.00012868,2]
[344546786,1733541065814,-500.0,0.00012868,2]
[344546787,1733541065824,-500.0,0.00012868,2]
[344546788,1733541065833,-500.0,0.00012868,2]
[344546789,1733541065843,-500.0,0.00012868,2]
[344546790,1733541065852,-500.0,0.00012868,2]
[344546791,1733541065862,-500.0,0.00012868,2]
[344546792,1733541065872,-500.0,0.00012868,2]
[344546793,1733541065881,-609.73208804,0.00012868,2]
[344546794,1733541065891,-500.0,0.00012868,2]
[344546795,1733541065901,-500.0,0.00012868,2]
[344546796,1733541065912,-561.77,0.00012868,2]
[344546797,1733541065921,-963.02,0.00012868,2]
[344546798,1733541065932,-2668.21,0.00012868,2]
[344546799,1733541065943,-500.0,0.00012868,2]
[344546800,1733541065952,-1000.0,0.00012868,2]
[344546801,1733541065962,-500.0,0.00012868,2]
[344546802,1733541065972,-500.0,0.00012868,2]
[344546803,1733541065982,-500.0,0.00012868,2]
[344546804,1733541065992,-500.0,0.00012869,2]
[344546805,1733541066002,-417.74359183,0.00012869,2]
[344546806,1733541066012,-627.31,0.00012869,2]
[344546807,1733541066021,-500.0,0.00012869,2]
[344546808,1733541066030,-500.0,0.00012869,2]
[344546809,1733541066039,-500.0,0.00012869,2]
[344546810,1733541066049,-500.0,0.00012869,2]
[344546811,1733541066059,-533.44,0.00012869,2]
[344546812,1733541066068,-500.0,0.00012869,2]
[344546813,1733541066077,-500.0,0.00012869,2]
[344546814,1733541066087,-500.0,0.00012869,2]
[344546815,1733541066096,-546.95,0.00012869,2]
[344546816,1733541066106,-509.59209146,0.00012869,2]
[344546817,1733541066115,-500.0,0.00012869,2]
[344546818,1733541066125,-500.0,0.00012869,2]
[344546819,1733541066134,-500.0,0.00012869,2]
[344546820,1733541066144,-500.0,0.00012869,2]
[344546821,1733541066153,-500.0,0.00012869,2]
[344546822,1733541066162,-500.0,0.00012869,2]
[344546823,1733541066171,-500.0,0.00012869,2]
[344546824,1733541066181,-729.39,0.00012871,2]
[344546825,1733541066191,-150.0,0.00012876,2]
[344546826,1733541066200,-150.0,0.00012876,2]
[344546827,1733541066209,-500.0,0.00012876,2]
[344546828,1733541066219,-959.0,0.00012876,2]
[344546829,1733541066228,-2900.0,0.000129,4]
[344546830,1733541066237,-344.41239926,0.00012904,2]
[344546831,1733541066247,-189.55,0.00012971,2]
[344546832,1733541066256,-2191.0,0.00012978,5]
[344546833,1733541066266,-150.0,0.00012983,2]
[344546834,1733541066275,-1000.0,0.00012999,2]
[344546835,1733541066288,-187.97387593,0.00012999,2]
[344546836,1733541066298,-500.0,0.00012999,2]
[344546837,1733541066308,-2500.0,0.00013,2]
[344546838,1733541066318,-10000.0,0.00013,3]
[344546839,1733541066327,-999999.7501672,0.00013,2]
[344546840,1733541066337,-1000.0,0.00013055,2]
[344546841,1733541066347,-1253.6480939,0.00013134,2]
[344546842,1733541066357,-1308.6045331,0.00013134,2]
[344546843,1733541066366,-186.1329379,0.00013134,2]
[344546844,1733541066375,-500.0,0.00013136,2]
[344546845,1733541066384,-500.0,0.00013141,2]
[344546846,1733541066394,-500.0,0.00013141,2]
[344546847,1733541066404,-562.43,0.00013141,2]
[344546848,1733541066413,-500.0,0.00013141,2]
[344546849,1733541066423,-500.0,0.00013141,2]
[344546850,1733541066433,-500.0,0.00013141,2]
[344546851,1733541066443,-500.0,0.00013141,2]
[344546852,1733541066453,-500.0,0.00013141,2]
[344546853,1733541066465,-500.0,0.00013141,2]
[344546854,1733541066475,-500.0,0.00013141,2]
[344546855,1733541066484,-500.0,0.00013141,2]
[344546856,1733541066494,-500.0,0.00013141,2]
[344546857,1733541066504,-500.0,0.00013141,2]
[344546858,1733541066514,-500.0,0.00013141,2]
[344546859,1733541066523,-156.21474,0.00013141,2]
[344546860,1733541066535,-500.0,0.00013141,2]
[344546861,1733541066544,-500.0,0.00013141,2]
[344546862,1733541066554,-500.0,0.00013141,2]
[344546863,1733541066564,-500.0,0.00013141,2]
[344546864,1733541066573,-500.0,0.00013141,2]
[344546865,1733541066585,-500.0,0.00013141,2]
[344546866,1733541066596,-569.03,0.00013141,2]
[344546867,1733541066605,-500.0,0.00013141,2]
[344546868,1733541066615,-500.0,0.00013141,2]
[344546869,1733541066626,-500.0,0.00013141,2]
[344546870,1733541066636,-712.37,0.00013141,2]
[344546871,1733541066646,-642.49658926,0.00013141,2]
[344546872,1733541066655,-429.41947797,0.00013141,2]
[344546873,1733541066665,-414.95547939,0.00013141,2]
[344546874,1733541066676,-755.27,0.00013141,2]
[344546875,1733541066686,-500.0,0.00013141,2]
[344546876,1733541066696,-500.0,0.00013141,2]
[344546877,1733541066705,-500.0,0.00013141,2]
[344546878,1733541066714,-1134.32,0.00013141,2]
[344546879,1733541066724,-500.0,0.00013141,2]
[344546880,1733541066733,-500.0,0.00013141,2]
[344546881,1733541066742,-500.0,0.00013141,2]
[344546882,1733541066752,-500.0,0.00013141,2]
[344546883,1733541066762,-729.35,0.00013141,2]
[344546884,1733541066772,-500.0,0.00013141,2]
[344546885,1733541066785,-443.9624699,0.00013141,2]
[344546886,1733541066795,-655.62,0.00013141,2]
[344546887,1733541066804,-500.0,0.00013141,2]
[344546888,1733541066814,-500.0,0.00013141,2]
[344546889,1733541066825,-500.0,0.00013141,2]
[344546890,1733541066835,-500.0,0.00013141,2]
[344546891,1733541066846,-500.0,0.00013141,2]
[344546892,1733541066856,-500.0,0.00013141,2]
[344546893,1733541066866,-559.97,0.00013141,2]
[344546894,1733541066875,-500.0,0.00013141,2]
[344546895,1733541066886,-500.0,0.00013141,2]
[344546896,1733541066895,-629.17,0.00013141,2]
[344546897,1733541066905,-500.0,0.00013141,2]
[344546898,1733541066914,-522.4,0.00013141,2]
[344546899,1733541066924,-500.0,0.00013141,2]
[344546900,1733541066933,-558.13,0.00013141,2]
[344546901,1733541066943,-500.0,0.00013141,2]
[344546902,1733541066952,-596.81,0.00013141,2]
[344546903,1733541066961,-1715.02,0.00013141,2]
[344546904,1733541066971,-500.0,0.00013141,2]
[344546905,1733541066980,-743.73,0.00013141,2]
[344546906,1733541066990,-607.63,0.00013141,2]
[344546907,1733541067000,-3248.7,0.00013141,2]
[344546908,1733541067010,-857.46,0.00013141,2]
[344546909,1733541067020,-500.0,0.00013141,2]
[344546910,1733541067031,-500.0,0.00013141,2]
[344546911,1733541067040,-3403.71,0.00013141,2]
[344546912,1733541067050,-546.54,0.00013141,2]
[344546913,1733541067060,-500.0,0.00013141,2]
[344546914,1733541067070,-305.38321855,0.00013141,2]
[344546915,1733541067080,-545.2,0.00013141,2]
[344546916,1733541067090,-506.19,0.00013141,2]
[344546917,1733541067100,-922.6,0.00013141,2]
[344546918,1733541067110,-500.0,0.00013141,2]
[344546919,1733541067119,-500.0,0.00013141,2]
[344546920,1733541067129,-1285.83,0.00013141,2]
[344546921,1733541067139,-553.43,0.00013141,2]
[344546922,1733541067149,-1097.94,0.00013141,2]
[344546923,1733541067158,-500.0,0.00013141,2]
[344546924,1733541067167,-753.13,0.00013141,2]
[344546925,1733541067176,-610.6,0.00013141,2]
[344546926,1733541067185,-893.85,0.00013141,2]
[344546927,1733541067194,-500.0,0.00013141,2]
[344546928,1733541067203,-500.0,0.00013141,2]
[344546929,1733541067213,-2397.76,0.00013141,2]
[344546930,1733541067222,-500.0,0.00013141,2]
[344546931,1733541067232,-500.0,0.00013141,2]
[344546932,1733541067241,-500.0,0.00013141,2]
[344546933,1733541067251,-500.0,0.00013141,2]
[344546934,1733541067260,-500.0,0.00013141,2]
[344546935,1733541067270,-500.0,0.00013141,2]
[344546936,1733541067280,-500.0,0.00013141,2]
[344546937,1733541067290,-1962.86,0.00013141,2]
[344546938,1733541067299,-500.0,0.00013141,2]
[344546939,1733541067308,-3708.05,0.00013141,2]
[344546940,1733541067317,-500.0,0.00013141,2]
[344546941,1733541067327,-500.0,0.00013141,2]
[344546942,1733541067336,-500.0,0.00013141,2]
[344546943,1733541067346,-500.0,0.00013141,2]
[344546944,1733541067356,-1882.97,0.00013141,2]
[344546945,1733541067366,-500.0,0.00013141,2]
[344546946,1733541067375,-500.0,0.00013141,2]
[344546947,1733541067385,-555.52,0.00013141,2]
[344546948,1733541067394,-500.0,0.00013141,2]
[344546949,1733541067404,-500.0,0.00013141,2]
[344546950,1733541067413,-500.0,0.00013141,2]
[344546951,1733541067422,-500.0,0.00013141,2]
[344546952,1733541067431,-841.17,0.00013141,2]
[344546953,1733541067441,-584.44,0.00013141,2]
[344546954,1733541067450,-656.6,0.00013141,2]
[344546955,1733541067460,-500.0,0.00013141,2]
[344546956,1733541067470,-868.73,0.00013141,2]
[344546957,1733541067479,-500.0,0.00013141,2]
[344546958,1733541067489,-730.65,0.00013141,2]
[344546959,1733541067498,-691.9,0.00013141,2]
[344546960,1733541067507,-500.0,0.00013141,2]
[344546961,1733541067516,-500.0,0.00013141,2]
[344546962,1733541067526,-500.0,0.00013141,2]
[344546963,1733541067538,-500.0,0.00013141,2]
[344546964,1733541067548,-3564.03,0.00013141,2]
[344546965,1733541067557,-1736.61,0.00013141,2]
[344546966,1733541067567,-2880.03,0.00013141,2]
[344546967,1733541067577,-500.0,0.00013141,2]
[344546968,1733541067589,-574.1,0.00013141,2]
[344546969,1733541067598,-605.61,0.00013141,2]
[344546970,1733541067607,-1145.2,0.00013141,2]
[344546971,1733541067616,-459.94368711,0.00013141,2]
[344546972,1733541067627,-500.0,0.00013141,2]
[344546973,1733541067636,-500.0,0.00013141,2]
[344546974,1733541067647,-500.0,0.00013141,2]
[344546975,1733541067657,-500.0,0.00013141,2]
[344546976,1733541067671,-500.0,0.00013141,2]
[344546977,1733541067680,-500.0,0.00013141,2]
[344546978,1733541067689,-500.0,0.00013141,2]
[344546979,1733541067700,-500.0,0.00013141,2]
[344546980,1733541067710,-500.0,0.00013141,2]
[344546981,1733541067720,-500.0,0.00013141,2]
[344546982,1733541067729,-977.63,0.00013141,2]
[344546983,1733541067738,-500.0,0.00013141,2]
[344546984,1733541067748,-500.0,0.00013141,2]
[344546985,1733541067758,-857.76,0.00013141,2]
[344546986,1733541067768,-866.03,0.00013141,2]
[344546987,1733541067778,-500.0,0.00013141,2]
[344546988,1733541067790,-500.0,0.00013141,2]
[344546989,1733541067800,-4199.14,0.00013141,2]
[344546990,1733541067810,-843.87,0.00013141,2]
[344546991,1733541067820,-2318.54,0.00013141,2]
[344546992,1733541067830,-500.0,0.00013141,2]
[344546993,1733541067840,-500.0,0.00013141,2]
[344546994,1733541067851,-500.0,0.00013141,2]
[344546995,1733541067862,-500.0,0.00013141,2]
[344546996,1733541067872,-2006.3121,0.00013142,2]
[344546997,1733541067882,-500.0,0.00013142,2]
[344546998,1733541067892,-513.08,0.00013142,2]
[344546999,1733541067903,-500.0,0.00013142,2]
[344547000,1733541067914,-500.0,0.00013142,2]
[344547001,1733541067927,-500.0,0.00013142,2]
[344547002,1733541067937,-500.0,0.00013142,2]
[344547003,1733541067948,-500.0,0.00013142,2]
[344547004,1733541067958,-500.0,0.00013142,2]
[344547005,1733541067968,-500.0,0.00013142,2]
[344547006,1733541067979,-500.0,0.00013142,2]
[344547007,1733541067990,-500.0,0.00013142,2]
[344547008,1733541068000,-500.0,0.00013142,2]
[344547009,1733541068010,-500.0,0.00013142,2]
[344547010,1733541068021,-500.0,0.00013142,2]
[344547011,1733541068034,-500.0,0.00013142,2]
[344547012,1733541068044,-500.0,0.00013142,2]
[344547013,1733541068057,-500.0,0.00013142,2]
[344547014,1733541068075,-571.99570741,0.00013142,2]
[344547015,1733541068087,-500.0,0.00013142,2]
[344547016,1733541068097,-500.0,0.00013142,2]
[344547017,1733541068108,-500.0,0.00013142,2]
[344547018,1733541068118,-500.0,0.00013142,2]
[344547019,1733541068129,-500.0,0.00013142,2]
[344547020,1733541068140,-500.0,0.00013142,2]
[344547021,1733541068150,-500.0,0.00013142,2]
[344547022,1733541068160,-500.0,0.00013142,2]
[344547023,1733541068170,-500.0,0.00013142,2]
[344547024,1733541068181,-565.3002248,0.00013142,2]
[344547025,1733541068191,-500.0,0.00013142,2]
[344547026,1733541068200,-561.77,0.00013142,2]
[344547027,1733541068211,-963.02,0.00013142,2]
[344547028,1733541068221,-2668.21,0.00013142,2]
[344547029,1733541068231,-500.0,0.00013142,2]
[344547030,1733541068242,-1000.0,0.00013142,2]
[344547031,1733541068252,-500.0,0.00013142,2]
[344547032,1733541068262,-500.0,0.00013142,2]
[344547033,1733541068273,-359.36944099,0.00013142,2]
[344547034,1733541068290,-500.0,0.00013143,2]
[344547035,1733541068300,-627.31,0.00013143,2]
[344547036,1733541068310,-500.0,0.00013143,2]
[344547037,1733541068320,-500.0,0.00013143,2]
[344547038,1733541068331,-500.0,0.00013143,2]
[344547039,1733541068540,-500.0,0.00013143,2]
[344547040,1733541068551,-533.44,0.00013143,2]
[344547041,1733541068562,-500.0,0.00013143,2]
[344547042,1733541068572,-500.0,0.00013143,2]
[344547043,1733541068587,-500.0,0.00013143,2]
[344547044,1733541068606,-546.95,0.00013143,2]
[344547045,1733541068616,-500.0,0.00013143,2]
[344547046,1733541068627,-500.0,0.00013143,2]
[344547047,1733541068638,-500.0,0.00013143,2]
[344547048,1733541068648,-500.0,0.00013143,2]
[344547049,1733541068659,-500.0,0.00013143,2]
[344547050,1733541068671,-500.0,0.00013143,2]
[344547051,1733541068682,-500.0,0.00013143,2]
[344547052,1733541068693,-729.39,0.00013145,2]
[344547053,1733541068703,-200.33824986,0.0001315,2]
[344547054,1733541068714,-200.17762638,0.0001315,2]
[344547055,1733541068724,-500.0,0.0001315,2]
[344547056,1733541068734,-959.0,0.0001315,2]
[344547057,1733541068744,-200.0,0.00013198,2]
[344547058,1733541068753,-200.0,0.00013198,2]
[344547059,1733541068763,-200.0,0.00013198,3]
[344547060,1733541068774,-200.0,0.00013198,3]
[344547061,1733541068784,-9341.32078279,0.00013201,2]
[344547062,1733541068793,-300.86,0.00013233,2]
[344547063,1733541068802,-687.55,0.00013233,2]
[344547064,1733541068811,-500.0,0.00013273,2]
[344547065,1733541068822,-1056.0,0.00013335,2]
[344547066,1733541068831,-500.0,0.0001341,2]
[344547067,1733541068842,-245.9,0.00013414,2]
[344547068,1733541068852,-500.0,0.00013415,2]
[344547069,1733541068862,-500.0,0.00013415,2]
[344547070,1733541068871,-562.43,0.00013415,2]
[344547071,1733541068881,-500.0,0.00013415,2]
[344547072,1733541068890,-500.0,0.00013415,2]
[344547073,1733541068900,-500.0,0.00013415,2]
[344547074,1733541068910,-500.0,0.00013415,2]
[344547075,1733541068919,-500.0,0.00013415,2]
[344547076,1733541068929,-500.0,0.00013415,2]
[344547077,1733541068939,-500.0,0.00013415,2]
[344547078,1733541068950,-500.0,0.00013415,2]
[344547079,1733541068960,-500.0,0.00013415,2]
[344547080,1733541068970,-500.0,0.00013415,2]
[344547081,1733541068980,-500.0,0.00013415,2]
[344547082,1733541068990,-615.0153357,0.00013415,2]
[344547083,1733541069000,-258.09421097,0.00013415,2]
[344547084,1733541069010,-500.0,0.00013415,2]
[344547085,1733541069021,-500.0,0.00013415,2]
[344547086,1733541069034,-269.25065936,0.00013415,2]
[344547087,1733541069043,-500.0,0.00013415,2]
[344547088,1733541069052,-569.03,0.00013415,2]
[344547089,1733541069062,-500.0,0.00013415,2]
[344547090,1733541069073,-500.0,0.00013415,2]
[344547091,1733541069083,-500.0,0.00013415,2]
[344547092,1733541069093,-712.37,0.00013415,2]
[344547093,1733541069102,-755.27,0.00013415,2]
[344547094,1733541069112,-500.0,0.00013415,2]
[344547095,1733541069122,-500.0,0.00013415,2]